Workbook

Sheet 외로운용사 Greedy
A1: 제작자 : Kuhave(http://kuhave.com) / Ver : 1.2('15.10.22) 현재 단계에서 가장 데미지를 상승시키는 DP 계산기
A4: ="유저레벨 : "&(E5+1) -> 유저레벨 : 1000 | B4: 뎀 | C4: 공속 | D4: 3단콤보 | E4: 합계 | G4: 평 공격력 | H4: 3타 공격력 | I4: 한턴 공격력 | J4: 공속 | K4: DP | L4: 상승량
A5: 레벨 | B5: 629 | C5: 48 | D5: 322 | E5: =SUM(B5:D5) -> 999 | F5: 현재 | G5: =$B$9 -> 155925 | H5: =INT(G5*(1+($D$9/100))) -> 1756027 | I5: =G5*2+H5 -> 2067877 | J5: =$C$9/100 -> 3.788 | K5: =I5*J5 -> 7833118.076
B6: =(B5+1)*50 -> 31500 | C6: =100+C5*0.6 -> 128.8 | D6: =100+D5*0.6 -> 293.2 | F6: 힘 | G6: =INT((B5+2)*50*(1+(B7+B8)/100)) -> 156172 | H6: =INT(G6*(1+($D$9/100))) -> 1758809 | I6: 2071153 | J6: =$C$9/100 -> 3.788 | K6: 7845527.564 | L6: =K6-$K$5 -> 12409.488 | O6: =MATCH(MAX(L6:L8),L6:L8,0) -> 1
A7: 배율 | B7: =B12+B13 -> 375 | C7: =C12+C13 -> 250 | D7: =D12+D13 -> 250 | F7: 민 | G7: =$B$9 -> 155925 | H7: =INT(G7*(1+($D$9/100))) -> 1756027 | I7: 2067877 | J7: =(100+(C5+1)*0.6+C7+C8)/100 -> 3.794 | K7: 7845525.338 | L7: 12407.262 | M7: 강화석 개당 효율
A8: 아이템(아머) | B8: 20 | C8: 0 | D8: 0 | F8: 3단 | G8: 155925 | H8: =INT(G8*(1+(ROUND((100+(D5+1)*0.6)*(1+(D7+D8)/100),1)/100))) -> 1759301 | I8: 2071151 | J8: 3.788 | K8: 7845519.988 | L8: 12401.912
B9: =INT(B6*(1+(B7+B8)/100)) -> 155925 | C9: =C6+C7+C8 -> 378.8 | D9: =ROUND(D6*(1+(D7+D8)/100),1) -> 1026.2 | F9: 칼(힘) | G9: =INT(B6*(1+(B7+1+B8)/100)) -> 156240 | H9: =INT(G9*(1+($D$9/100))) -> 1759574 | I9: 2072054 | J9: =$C$9/100 -> 3.788 | K9: 7848940.552 | L9: 15822.476 | M9: =L9/VLOOKUP(힘악,$A$20:$C$1048576,2) -> 42.19326933
F10: 목걸(민) | G10: =$B$9 -> 155925 | H10: =INT(G10*(1+($D$9/100))) -> 1756027 | I10: 2067877 | J10: =(C6+C7+1+C8)/100 -> 3.798 | K10: 7853796.846 | L10: 20678.77 | M10: =L10/VLOOKUP(민악,$A$20:$C$1048576,2) -> 82.71508
F11: 고리(3단) | G11: =$B$9 -> 155925 | H11: =INT(G11*(1+(ROUND(D6*(1+(D7+D8+1)/100),1)/100))) -> 1760549 | I11: 2072399 | J11: =$C$9/100 -> 3.788 | K11: 7850247.412 | L11: 17129.336 | M11: =L11/VLOOKUP(콤악,$A$20:$C$1048576,2) -> 68.517344
B12: 375 | C12: 250 | D12: 250
H13: 598 | I13: 160 | J13: 241 | K13: 2594752.28 | L13: =K5-K13 -> 5238365.796
B14: =VLOOKUP(B12,$A$20:$C$1048576,3) -> 71250 | C14: =VLOOKUP(C12,$A$20:$C$1048576,3) -> 31875 | D14: =VLOOKUP(D12,$A$20:$C$1048576,3) -> 31875 | E14: 현재 쓴 강화석 | F14: =SUM(B14:D15) -> 135000
F18: 600 | H18: 0
A19: 레벨 | B19: 필요 | C19: 소요강화 | F19: =F18-H18 -> 600 | G19: =INT((999-F19)/2) -> 199
A20: 0 | B20: 0 | C20: 0 | F20: =999-F19-G19 -> 200 | G20: =G19 -> 199 | H20: 41
A21: 1 | B21: 5 | C21: =SUM($B$21:B21) -> 5 | F21: 50 | G21: =F20+G20 -> 399
A22: 2 | B22: 5 | C22: =SUM($B$21:B22) -> 10
A23: 3 | B23: 5 | C23: =SUM($B$21:B23) -> 15
A24: 4 | B24: 5 | C24: =SUM($B$21:B24) -> 20
A25: 5 | B25: 5 | C25: =SUM($B$21:B25) -> 25
A26: 6 | B26: =B21+5 -> 10 | C26: =SUM($B$21:B26) -> 35
A27: 7 | B27: 10 | C27: =SUM($B$21:B27) -> 45
A28: 8 | B28: 10 | C28: =SUM($B$21:B28) -> 55
A29: 9 | B29: 10 | C29: =SUM($B$21:B29) -> 65
A30: 10 | B30: 10 | C30: =SUM($B$21:B30) -> 75
A31: 11 | B31: 15 | C31: =SUM($B$21:B31) -> 90
A32: 12 | B32: 15 | C32: =SUM($B$21:B32) -> 105
A33: 13 | B33: 15 | C33: =SUM($B$21:B33) -> 120
A34: 14 | B34: 15 | C34: =SUM($B$21:B34) -> 135
A35: 15 | B35: 15 | C35: =SUM($B$21:B35) -> 150
A36: 16 | B36: 20 | C36: =SUM($B$21:B36) -> 170
A37: 17 | B37: 20 | C37: =SUM($B$21:B37) -> 190
A38: 18 | B38: 20 | C38: =SUM($B$21:B38) -> 210
A39: 19 | B39: 20 | C39: =SUM($B$21:B39) -> 230
A40: 20 | B40: 20 | C40: =SUM($B$21:B40) -> 250
A41: 21 | B41: 25 | C41: =SUM($B$21:B41) -> 275
A42: 22 | B42: 25 | C42: =SUM($B$21:B42) -> 300
A43: 23 | B43: 25 | C43: =SUM($B$21:B43) -> 325
A44: 24 | B44: 25 | C44: =SUM($B$21:B44) -> 350
A45: 25 | B45: 25 | C45: =SUM($B$21:B45) -> 375
A46: 26 | B46: 30 | C46: =SUM($B$21:B46) -> 405
A47: 27 | B47: 30 | C47: =SUM($B$21:B47) -> 435
A48: 28 | B48: 30 | C48: =SUM($B$21:B48) -> 465
A49: 29 | B49: 30 | C49: =SUM($B$21:B49) -> 495
A50: 30 | B50: 30 | C50: =SUM($B$21:B50) -> 525
A51: 31 | B51: 35 | C51: =SUM($B$21:B51) -> 560
A52: 32 | B52: 35 | C52: =SUM($B$21:B52) -> 595
A53: 33 | B53: 35 | C53: =SUM($B$21:B53) -> 630
A54: 34 | B54: 35 | C54: =SUM($B$21:B54) -> 665
A55: 35 | B55: 35 | C55: =SUM($B$21:B55) -> 700
A56: 36 | B56: 40 | C56: =SUM($B$21:B56) -> 740
A57: 37 | B57: 40 | C57: =SUM($B$21:B57) -> 780
A58: 38 | B58: 40 | C58: =SUM($B$21:B58) -> 820
A59: 39 | B59: 40 | C59: =SUM($B$21:B59) -> 860
A60: 40 | B60: 40 | C60: =SUM($B$21:B60) -> 900
A61: 41 | B61: 45 | C61: =SUM($B$21:B61) -> 945
A62: 42 | B62: 45 | C62: =SUM($B$21:B62) -> 990
A63: 43 | B63: 45 | C63: =SUM($B$21:B63) -> 1035
A64: 44 | B64: 45 | C64: =SUM($B$21:B64) -> 1080
A65: 45 | B65: 45 | C65: =SUM($B$21:B65) -> 1125
A66: 46 | B66: 50 | C66: =SUM($B$21:B66) -> 1175
A67: 47 | B67: 50 | C67: =SUM($B$21:B67) -> 1225
A68: 48 | B68: 50 | C68: =SUM($B$21:B68) -> 1275
A69: 49 | B69: 50 | C69: =SUM($B$21:B69) -> 1325
A70: 50 | B70: 50 | C70: =SUM($B$21:B70) -> 1375
A71: 51 | B71: 55 | C71: =SUM($B$21:B71) -> 1430
A72: 52 | B72: 55 | C72: =SUM($B$21:B72) -> 1485
A73: 53 | B73: 55 | C73: =SUM($B$21:B73) -> 1540
A74: 54 | B74: 55 | C74: =SUM($B$21:B74) -> 1595
A75: 55 | B75: 55 | C75: =SUM($B$21:B75) -> 1650
A76: 56 | B76: 60 | C76: =SUM($B$21:B76) -> 1710
A77: 57 | B77: 60 | C77: =SUM($B$21:B77) -> 1770
A78: 58 | B78: 60 | C78: =SUM($B$21:B78) -> 1830
A79: 59 | B79: 60 | C79: =SUM($B$21:B79) -> 1890
A80: 60 | B80: 60 | C80: =SUM($B$21:B80) -> 1950
A81: 61 | B81: 65 | C81: =SUM($B$21:B81) -> 2015
A82: 62 | B82: 65 | C82: =SUM($B$21:B82) -> 2080
A83: 63 | B83: 65 | C83: =SUM($B$21:B83) -> 2145
A84: 64 | B84: 65 | C84: =SUM($B$21:B84) -> 2210
A85: 65 | B85: 65 | C85: =SUM($B$21:B85) -> 2275
A86: 66 | B86: 70 | C86: =SUM($B$21:B86) -> 2345
A87: 67 | B87: 70 | C87: =SUM($B$21:B87) -> 2415
A88: 68 | B88: 70 | C88: =SUM($B$21:B88) -> 2485
A89: 69 | B89: 70 | C89: =SUM($B$21:B89) -> 2555
A90: 70 | B90: =B85+5 -> 70 | C90: =SUM($B$21:B90) -> 2625
A91: 71 | B91: 75 | C91: =SUM($B$21:B91) -> 2700
A92: 72 | B92: 75 | C92: =SUM($B$21:B92) -> 2775
A93: 73 | B93: 75 | C93: =SUM($B$21:B93) -> 2850
A94: 74 | B94: 75 | C94: =SUM($B$21:B94) -> 2925
A95: 75 | B95: 75 | C95: =SUM($B$21:B95) -> 3000
A96: 76 | B96: 80 | C96: =SUM($B$21:B96) -> 3080
A97: 77 | B97: 80 | C97: =SUM($B$21:B97) -> 3160
A98: 78 | B98: 80 | C98: =SUM($B$21:B98) -> 3240
A99: 79 | B99: 80 | C99: =SUM($B$21:B99) -> 3320
A100: 80 | B100: 80 | C100: =SUM($B$21:B100) -> 3400
A101: 81 | B101: 85 | C101: =SUM($B$21:B101) -> 3485
A102: 82 | B102: 85 | C102: =SUM($B$21:B102) -> 3570
A103: 83 | B103: 85 | C103: =SUM($B$21:B103) -> 3655
A104: 84 | B104: 85 | C104: =SUM($B$21:B104) -> 3740
A105: 85 | B105: 85 | C105: =SUM($B$21:B105) -> 3825
A106: 86 | B106: 90 | C106: =SUM($B$21:B106) -> 3915
A107: 87 | B107: 90 | C107: =SUM($B$21:B107) -> 4005
A108: 88 | B108: 90 | C108: =SUM($B$21:B108) -> 4095
A109: 89 | B109: 90 | C109: =SUM($B$21:B109) -> 4185
A110: 90 | B110: 90 | C110: =SUM($B$21:B110) -> 4275
A111: 91 | B111: 95 | C111: =SUM($B$21:B111) -> 4370
A112: 92 | B112: 95 | C112: =SUM($B$21:B112) -> 4465
A113: 93 | B113: 95 | C113: =SUM($B$21:B113) -> 4560
A114: 94 | B114: 95 | C114: =SUM($B$21:B114) -> 4655
A115: 95 | B115: 95 | C115: =SUM($B$21:B115) -> 4750
A116: 96 | B116: 100 | C116: =SUM($B$21:B116) -> 4850
A117: 97 | B117: 100 | C117: =SUM($B$21:B117) -> 4950
A118: 98 | B118: 100 | C118: =SUM($B$21:B118) -> 5050
A119: 99 | B119: 100 | C119: =SUM($B$21:B119) -> 5150
A120: 100 | B120: 100 | C120: =SUM($B$21:B120) -> 5250
A121: 101 | B121: 105 | C121: =SUM($B$21:B121) -> 5355
A122: 102 | B122: 105 | C122: =SUM($B$21:B122) -> 5460
A123: 103 | B123: 105 | C123: =SUM($B$21:B123) -> 5565
A124: 104 | B124: 105 | C124: =SUM($B$21:B124) -> 5670
A125: 105 | B125: 105 | C125: =SUM($B$21:B125) -> 5775
A126: 106 | B126: 110 | C126: =SUM($B$21:B126) -> 5885
A127: 107 | B127: 110 | C127: =SUM($B$21:B127) -> 5995
A128: 108 | B128: 110 | C128: =SUM($B$21:B128) -> 6105
A129: 109 | B129: 110 | C129: =SUM($B$21:B129) -> 6215
A130: 110 | B130: 110 | C130: =SUM($B$21:B130) -> 6325
A131: 111 | B131: 115 | C131: =SUM($B$21:B131) -> 6440
A132: 112 | B132: 115 | C132: =SUM($B$21:B132) -> 6555
A133: 113 | B133: 115 | C133: =SUM($B$21:B133) -> 6670
A134: 114 | B134: 115 | C134: =SUM($B$21:B134) -> 6785
A135: 115 | B135: 115 | C135: =SUM($B$21:B135) -> 6900
A136: 116 | B136: 120 | C136: =SUM($B$21:B136) -> 7020
A137: 117 | B137: 120 | C137: =SUM($B$21:B137) -> 7140
A138: 118 | B138: 120 | C138: =SUM($B$21:B138) -> 7260
A139: 119 | B139: 120 | C139: =SUM($B$21:B139) -> 7380
A140: 120 | B140: 120 | C140: =SUM($B$21:B140) -> 7500
A141: 121 | B141: 125 | C141: =SUM($B$21:B141) -> 7625
A142: 122 | B142: 125 | C142: =SUM($B$21:B142) -> 7750
A143: 123 | B143: 125 | C143: =SUM($B$21:B143) -> 7875
A144: 124 | B144: 125 | C144: =SUM($B$21:B144) -> 8000
A145: 125 | B145: 125 | C145: =SUM($B$21:B145) -> 8125
A146: 126 | B146: 130 | C146: =SUM($B$21:B146) -> 8255
A147: 127 | B147: 130 | C147: =SUM($B$21:B147) -> 8385
A148: 128 | B148: 130 | C148: =SUM($B$21:B148) -> 8515
A149: 129 | B149: 130 | C149: =SUM($B$21:B149) -> 8645
A150: 130 | B150: 130 | C150: =SUM($B$21:B150) -> 8775
A151: 131 | B151: 135 | C151: =SUM($B$21:B151) -> 8910
A152: 132 | B152: 135 | C152: =SUM($B$21:B152) -> 9045
A153: 133 | B153: 135 | C153: =SUM($B$21:B153) -> 9180
A154: 134 | B154: =B149+5 -> 135 | C154: =SUM($B$21:B154) -> 9315
A155: 135 | B155: 135 | C155: =SUM($B$21:B155) -> 9450
A156: 136 | B156: 140 | C156: =SUM($B$21:B156) -> 9590
A157: 137 | B157: 140 | C157: =SUM($B$21:B157) -> 9730
A158: 138 | B158: 140 | C158: =SUM($B$21:B158) -> 9870
A159: 139 | B159: 140 | C159: =SUM($B$21:B159) -> 10010
A160: 140 | B160: 140 | C160: =SUM($B$21:B160) -> 10150
A161: 141 | B161: 145 | C161: =SUM($B$21:B161) -> 10295
A162: 142 | B162: 145 | C162: =SUM($B$21:B162) -> 10440
A163: 143 | B163: 145 | C163: =SUM($B$21:B163) -> 10585
A164: 144 | B164: 145 | C164: =SUM($B$21:B164) -> 10730
A165: 145 | B165: 145 | C165: =SUM($B$21:B165) -> 10875
A166: 146 | B166: 150 | C166: =SUM($B$21:B166) -> 11025
A167: 147 | B167: 150 | C167: =SUM($B$21:B167) -> 11175
A168: 148 | B168: 150 | C168: =SUM($B$21:B168) -> 11325
A169: 149 | B169: 150 | C169: =SUM($B$21:B169) -> 11475
A170: 150 | B170: 150 | C170: =SUM($B$21:B170) -> 11625
A171: 151 | B171: 155 | C171: =SUM($B$21:B171) -> 11780
A172: 152 | B172: 155 | C172: =SUM($B$21:B172) -> 11935
A173: 153 | B173: 155 | C173: =SUM($B$21:B173) -> 12090
A174: 154 | B174: 155 | C174: =SUM($B$21:B174) -> 12245
A175: 155 | B175: 155 | C175: =SUM($B$21:B175) -> 12400
A176: 156 | B176: 160 | C176: =SUM($B$21:B176) -> 12560
A177: 157 | B177: 160 | C177: =SUM($B$21:B177) -> 12720
A178: 158 | B178: 160 | C178: =SUM($B$21:B178) -> 12880
A179: 159 | B179: 160 | C179: =SUM($B$21:B179) -> 13040
A180: 160 | B180: 160 | C180: =SUM($B$21:B180) -> 13200
A181: 161 | B181: 165 | C181: =SUM($B$21:B181) -> 13365
A182: 162 | B182: 165 | C182: =SUM($B$21:B182) -> 13530
A183: 163 | B183: 165 | C183: =SUM($B$21:B183) -> 13695
A184: 164 | B184: 165 | C184: =SUM($B$21:B184) -> 13860
A185: 165 | B185: 165 | C185: =SUM($B$21:B185) -> 14025
A186: 166 | B186: 170 | C186: =SUM($B$21:B186) -> 14195
A187: 167 | B187: 170 | C187: =SUM($B$21:B187) -> 14365
A188: 168 | B188: 170 | C188: =SUM($B$21:B188) -> 14535
A189: 169 | B189: 170 | C189: =SUM($B$21:B189) -> 14705
A190: 170 | B190: 170 | C190: =SUM($B$21:B190) -> 14875
A191: 171 | B191: 175 | C191: =SUM($B$21:B191) -> 15050
A192: 172 | B192: 175 | C192: =SUM($B$21:B192) -> 15225
A193: 173 | B193: 175 | C193: =SUM($B$21:B193) -> 15400
A194: 174 | B194: 175 | C194: =SUM($B$21:B194) -> 15575
A195: 175 | B195: 175 | C195: =SUM($B$21:B195) -> 15750
A196: 176 | B196: 180 | C196: =SUM($B$21:B196) -> 15930
A197: 177 | B197: 180 | C197: =SUM($B$21:B197) -> 16110
A198: 178 | B198: 180 | C198: =SUM($B$21:B198) -> 16290
A199: 179 | B199: 180 | C199: =SUM($B$21:B199) -> 16470
A200: 180 | B200: 180 | C200: =SUM($B$21:B200) -> 16650
A201: 181 | B201: 185 | C201: =SUM($B$21:B201) -> 16835
A202: 182 | B202: 185 | C202: =SUM($B$21:B202) -> 17020
A203: 183 | B203: 185 | C203: =SUM($B$21:B203) -> 17205
A204: 184 | B204: 185 | C204: =SUM($B$21:B204) -> 17390
A205: 185 | B205: 185 | C205: =SUM($B$21:B205) -> 17575
... 815 more rows
